Workbook

Sheet year_wise details
B1: Project Budget - part budget 2010 – 2012
B3: Project Focus - Deepening Interventions to Enhance Access and Quality of Education for Urban Poor Communities
B5: Note – amounts have been calculated at 40% of the description as this program is proposed to be supported through multiple donors
A7: Sr. | B7: Line Item (i) ** | C7: year -1 | D7: year 2 | E7: year 3 | F7: Funds Requested over three years
A9: 1 | B9: Jeevan Shiksha Pahel (JSP) and Basti Centres (BC)
A10: 1.1 | B10: Recurrent costs of workbooks, stationery, textbooks (ii) | C10: =220*325*0.4 -> 28600 | D10: =320*325*0.4 -> 41600 | E10: =325*450*0.4 -> 58500 | F10: =(325*220+325*320+325*450)*0.4 -> 128700
A11: 1.2 | B11: Nutritional snack for children at the JSP (iii) | C11: =180*8*220*0.4 -> 126720 | D11: =220*8*250*0.4 -> 176000 | E11: =280*22*10*9*0.4 -> 221760 | F11: =((180*8*22*10)+(250*8*22*10)+(280*9*22*10))*0.4 -> 524480
A12: 1.3 | B12: Rent for JSP and Basti Centres (iv) | C12: 51360 | D12: 63696 | E12: 70066 | F12: =((10000*12)+(350*2*12)+(10000*12*1.1)+(350*2*12*1.1)+(500*3*12)+(10000*12*1.1*1.1)+(350*2*12*1.1*1.1)+(500*3*12*1.1))*0.4 -> 185121.6
A13: 1.4 | B13: Workshops and Balmelas, Outings and activities with children (JSP+BC) (v) | C13: =((1000*10)+(6000*2)+5000+10800)*0.4 -> 15120 | D13: 21168 | E13: 29030 | F13: =((1000*10+6000*2+5000+10800)+((1000*10+6000*2+5000+10800)*350/250)+(((1000*10+6000*2+5000+10800)*350/250))*480/350)*0.4 -> 65318.4
A14: 1.5 | B14: Centre events (cultural, sports, exhibition) (vi) | C14: =18720*3*0.4 -> 22464 | D14: =18720*3*0.4 -> 22464 | E14: =18720*3*0.4 -> 22464 | F14: =(18720*3*3)*0.4 -> 67392
A15: 1.6 | B15: Transportation Costs for children of 6 Bastis (vii) | C15: =1060*22*10*0.4 -> 93280 | D15: =157541*0.4 -> 63016.4 | E15: 63017 | F15: =(233200+157541.5*2)*0.4 -> 219313.2
A16: 1.7 | B16: Library books @ Rs. 5,000 in Y1, Rs. 8,000 in Y2 and Rs. 11,000 in Y3 | C16: =5000*0.4 -> 2000 | D16: 3200 | E16: 4400 | F16: =(5000+8000+11000)*0.4 -> 9600
A17: 1.8 | B17: Data Information Systems @ Rs.10,000 x 2 years (Y1 and Y2) and Rs. 15,000 in Y3 | C17: 4000 | D17: 4000 | E17: 6000 | F17: =(10000+10000+15000)*0.4 -> 14000
A18: 1.9 | B18: Jeevan Shiksha Pahel Teachers' salary @ Rs. 8,200 / month x 9 teachers x 3 years^; In Y2 & 3; 4 new teachers @ Rs. 8,500 per month ^ | C18: =8200*9*12*0.4 -> 354240 | D18: =(885600+(885600*0.1)+(4*8500*12))*0.4 -> 552864 | E18: 608150 | F18: =((8200*9*12)+(8200*9*12*1.1)+(8500*4*12)+(8200*9*12*1.1*1.1)+(8500*4*12*1.1))*0.4 -> 1515254.4
A19: 1.1 | B19: Activity persons in JSP @ Rs. 3,100 / month x 1 person x 3 years ^ | C19: =3100*12*0.4 -> 14880 | D19: 16368 | E19: 18005 | F19: =((3100*12)+(3100*12*1.1*1)+(3100*12*1.1*1.1*1))*0.4 -> 49252.8
A20: 1.11 | B20: Art and Music teaching learning (viii) | C20: =((3000*2*10)+4000)*0.4 -> 25600 | D20: =((3300*2*10)+6000)*0.4 -> 28800 | E20: =((4500*3*10)+8000)*0.4 -> 57200 | F20: =((3000*2*10)+4000+((3300*2*10)+6000)+((4500*3*10)+8000))*0.4 -> 111600
A21: 1.12 | B21: Work in Education - (Y1 Rs. 6,000; Bulk amount of Rs. 50,000 and Rs. 75,000 in Y2 and Y3 respectively based on the performance in first year.) | C21: 2400 | D21: 20000 | E21: =75000*0.4 -> 30000 | F21: =(6000+50000+(75000))*0.4 -> 52400
B22: Sub-Total | C22: =SUM(C10:C21) -> 740664 | D22: =SUM(D10:D21) -> 1013176.4 | E22: =SUM(E10:E21) -> 1188592 | F22: =SUM(F10:F21) -> 2942432.4
A23: 2 | B23: Community Education Program (towards quarterly Basti meetings, residential workshops and film screenings) (ix) | C23: =40200*0.4 -> 16080 | D23: =50250*0.4 -> 20100 | E23: =60300*0.4 -> 24120 | F23: =((40200)+(50250)+(60300))*0.4 -> 60300
A24: 3 | B24: Residential Camps for Children Out-of-School
A25: 3.1 | B25: One-time Expenses for Residential camps @ Rs. 55,900 in Y1, Rs. 5,590 in Y2, Rs. 5,590 in Y3 (x) | C25: =55900*0.4 -> 22360 | D25: =5590*0.4 -> 2236 | E25: =5590*0.4 -> 2236 | F25: =(55900+5590+5590)*0.4 -> 26832
A26: 3.2 | B26: Recurring Expenses for one Residential camp @ Rs. 2,95,300 per camp x 2 camps per year ^ (xi) | C26: =(295300*2*0.4) -> 236240 | D26: =649660*0.4 -> 259864 | E26: =714626*0.4 -> 285850.4 | F26: =((295300*2+295300*2*1.1+295300*2*1.1*1.1))*0.4 -> 781954.4
A27: 3.3 | B27: Residential Camp team members @ Rs. 7,500 / month x 3 persons x 3 years ; 11 months in Y1^ | C27: =7500*3*11*0.4 -> 99000 | D27: =8250*12*3*0.4 -> 118800 | E27: 130680 | F27: =((7500*3*11)+(7500*3*12*1.1)+(7500*12*1.1*1.1*3))*0.4 -> 348480
B28: Sub-Total | C28: =SUM(C25:C27) -> 357600 | D28: =SUM(D25:D27) -> 380900 | E28: =SUM(E25:E27) -> 418766.4 | F28: =F25+F26+F27 -> 1157266.4
A29: 4 | B29: Working with Adolescents and Youth
A30: 4.1 | B30: Tutorial centre running costs @ Rs. 53,200 per year per centre (1 centre in Y1, 3 centers in Y2; 5 centers in Y3 ^) | C30: =53200*0.4 -> 21280 | D30: =((3*53200)+(3*53200*0.1))*0.4 -> 70224 | E30: =53200*1.1*1.1*5*0.4 -> 128744 | F30: =((53200)+(53200*3*1.1)+(53200*5*1.1*1.1))*0.4 -> 220248
A31: 4.2 | B31: Tutorial Centre Teachers: 1 teacher in Y1 @ Rs.3,100 / month x 3 years ^;Y2 - 2 more new teachers @ Rs. 3,300 / month x 2 years ^; Y3 - 2 more new teachers @ Rs. 4,000 / month x 1 year | C31: =3100*12*0.4 -> 14880 | D31: =((3410*12)+(3300*2*12))*0.4 -> 48048 | E31: 91253 | F31: =((3100*1*12)+(3100*1*12*1.1)+(3300*12*2)+(3100*12*1*1.1*1.1)+(3300*12*2*1.1)+(4000*12*2))*0.4 -> 154180.8
A32: 4.3 | B32: Mentor for Youth @ Rs. 7,500 / month x 1 person x 3 years ^ | C32: =7500*12*0.4 -> 36000 | D32: =99000*0.4 -> 39600 | E32: =108900*0.4 -> 43560 | F32: =((7500*12)+(7500*12*1.1)+(7500*12*1.1*1.1))*0.4 -> 119160
A33: 4.4 | B33: Hostel for girls @ Rs. 375,000 per year x 3 years (supported 100% from other sources) | C33: 375000 | D33: 375000 | E33: 375000 | F33: =375000*3 -> 1125000
B34: Sub-Total | C34: =SUM(C30:C33) -> 447160 | D34: =SUM(D30:D33) -> 532872 | E34: =SUM(E30:E33) -> 638557 | F34: =SUM(F30:F33) -> 1618588.8
A35: 5 | B35: Community Based Balwadis
A36: 5.1 | B36: Balwadi running costs @ Rs. 29,413 per Balwadi per year x 8 Balwadi in Y1; 10 Balwadi in Y2; and 12 Balwadi in Y3 (xii) | C36: 94122 | D36: =29413*10*0.4 -> 117652 | E36: =29413*12*0.4 -> 141182.4 | F36: =((29413*8)+(29413*10)+(29413*12))*0.4 -> 352956
A37: 5.2 | B37: Balwadi Teachers in Y1- 8 @ Rs. 3,100 / month x 8 teachers x 3 years ^;Y2 - 2 more new teachers @ Rs. 3,300 / month x 2 teachers x 2 years^; Y3 - 2 more new teachers @ Rs. 4,000 / month x 2 teachers x 1 year | C37: =3100*8*12*0.4 -> 119040 | D37: =406560*0.4 -> 162624 | E37: =543216*0.4 -> 217286.4 | F37: =((3100*12*8)+(3100*12*8*1.1)+(3300*12*2)+(3100*12*8*1.1*1.1)+(3300*12*2*1.1)+(4000*12*2))*0.4 -> 498950.4
A38: 5.3 | B38: Balwadi Program Coordinator @ Rs. 7,500 / month x 1 persons x 3 years ^ | C38: 36000 | D38: =99000*0.4 -> 39600 | E38: =108900*0.4 -> 43560 | F38: =((7500*12)+(7500*12*1.1)+(7500*12*1.1*1.1))*0.4 -> 119160
B39: Sub-Total | C39: =SUM(C36:C38) -> 249162 | D39: =SUM(D36:D38) -> 319876 | E39: 402028 | F39: =F36+F37+F38 -> 971066.4
A40: 6 | B40: Strengthening Government School System
A41: 6.1 | B41: Program towards Strengthening Education System (xiii)^ | C41: =((1600*25)+(90000)+25500+36000+16000+(4500*11)+10000)*0.4 -> 106800 | D41: =29370*4 -> 117480 | E41: =323070*0.4 -> 129228 | F41: =((267000+267000*1.1+267000*1.1*1.1))*0.4 -> 353508
A42: 6.2 | B42: Seminar, Exhibitions and Events @ Rs.142,500 per year x 3 years (xiv) & | C42: =142500*0.4 -> 57000 | D42: =178125*0.4 -> 71250 | E42: =D42 -> 71250 | F42: =((142500)+(142500*1.25)+(142500*1.25))*0.4 -> 199500
A43: 6.3 | B43: Mainstreaming Children in Formal Schools @ Rs. 98,750 per year x 3 years (xv) # | C43: =98750*0.4 -> 39500 | D43: 49375 | E43: 61719 | F43: =((98750)+(98750*1.25)+(98750*1.25*1.25))*0.4 -> 150593.75
A44: 6.4 | B44: School support volunteers @ Rs. 8,200 / month x 11 volunteers x 3 years ^ | C44: =8200*11*12*0.4 -> 432960 | D44: =1190640*0.4 -> 476256 | E44: 523882 | F44: =((8200*11*12)+(8200*11*12*1.1)+(8200*11*12*1.1*1.1))*0.4 -> 1433097.6
A45: 6.5 | B45: Material Development @ Rs.130,000 per year x 3 years (xvi) # | C45: 52000 | D45: =162500*0.4 -> 65000 | E45: =203125*0.4 -> 81250 | F45: =((130000)+(130000*1.25)+(130000*1.25*1.25))*0.4 -> 198250
B46: Sub-Total | C46: =SUM(C41:C45) -> 688260 | D46: =SUM(D41:D45) -> 779361 | E46: =SUM(E41:E45) -> 867329 | F46: =SUM(F41:F45) -> 2334949.35
A47: 7 | B47: Organisation Development and Capacity Building
A48: 7.1 | B48: Institution Building / OD inputs @ Rs. 44,000 per year x 3 years & (xvii) | C48: 0 | D48: 0 | E48: 0 | F48: =0 -> 0
A49: 7.2 | B49: Staff Capacity Building (Exposure visits and trainings for Balwadi, JSP, Gov't School teams) @ Rs.154,400 per year x 3 years (5 % increase) * (xviii) | C49: =154400*0.4 -> 61760 | D49: =162120*0.4 -> 64848 | E49: =170226*0.4 -> 68090.4 | F49: =((154400)+(154400*1.05)+(154400*1.05*1.05))*0.4 -> 194698.4
B50: Sub-Total | C50: =SUM(C48:C49) -> 61760 | D50: =SUM(D48:D49) -> 64848 | E50: =SUM(E48:E49) -> 68090.4 | F50: =F48+F49 -> 194698.4
A51: 8 | B51: Overall Personnel Costs
A52: 8.1 | B52: Subject / Documentation Expert @ Rs.13,000 / month x 2 persons x 3 years ^ | C52: =13000*2*12*0.4 -> 124800 | D52: =34320*4 -> 137280 | E52: =377520*0.4 -> 151008 | F52: =((13000*12*2)+(13000*12*1.1*2)+(13000*2*12*1.1*1.1))*0.4 -> 413088
A53: 8.2 | B53: Program Team Leaders @ Rs.11,000 / month x 2 persons x 3 years ^ | C53: =11000*2*12*0.4 -> 105600 | D53: =29040*4 -> 116160 | E53: =31944*4 -> 127776 | F53: =((11000*2*12)+(11000*2*12*1.1)+(11000*2*12*1.1*1.1))*0.4 -> 349536
A54: 8.3 | B54: Project Coordinator @ Rs.17,000 per month x 1 person x 3 years ^ | C54: =17000*1*12*0.4 -> 81600 | D54: =22440*4 -> 89760 | E54: =24684*4 -> 98736 | F54: =((17000*12)+(17000*12*1.1)+(17000*12*1.1*1.1))*0.4 -> 270096
A55: 8.4 | B55: Local travel @ Rs. 600 per month x 18 persons; Rs. 1,400 per month x 7 persons for Y1, Y2 and Y3 ^ | C55: =((600*18*12)+(1400*12*7))*0.4 -> 98880 | D55: =27192*4 -> 108768 | E55: =299112*0.4 -> 119644.8 | F55: =((600*18*12+1400*7*12)+((600*18*12+1400*7*12))*1.1+((600*18*12+1400*7*12))*1.1*1.1)*0.4 -> 327292.8
B56: Sub-Total | C56: =SUM(C52:C55) -> 410880 | D56: =SUM(D52:D55) -> 451968 | E56: =SUM(E52:E55) -> 497164.8 | F56: =F52+F53+F54+F55 -> 1360012.8
B57: Total (1 to 8) | C57: =C22+C23+C28+C34+C39+C46+C50+C56 -> 2971566 | D57: =D22+D23+D28+D34+D39+D46+D50+D56 -> 3563101.4 | E57: =E22+E23+E28+E34+E39+E46+E50+E56 -> 4104647.6 | F57: =F22+F23+F28+F34+F39+F46+F50+F56 -> 10639314.55
B58: Administrative Expenses (@ 7% of the total) (xix) | C58: =(C57*0.07) -> 208009.62 | D58: =D57*0.07 -> 249417.098 | E58: =(E57*0.07) -> 287325.332 | F58: =F57*7/100 -> 744752.0185
B59: Funds Requested | C59: =C57+C58 -> 3179575.62 | D59: =D57+D58 -> 3812518.498 | E59: =E57+E58 -> 4391972.932 | F59: =F57+F58 -> 11384066.57
A60: Notes:
A63: ^ | B63: 10% increase in Y2 and Y3
A64: & | B64: 25% increase in Y2 and Y3 value same as Y2
A65: # | B65: 25% increase in Y2 and Y3
A66: * | B66: 5% increase in Y2 and Y3
A67: (ii) | B67: Calculated @ Rs. 325 per child per year x 3 years (no. of children from JSP + BC: Y1-220, Y2-320, and Y3-450).
A68: (iii) | B68: Calculated @ Rs. 8 per day x 180 children x 22 days x 10 months in Y1; 250 children in Y2 and Rs. 9 per day x 280 children x 22 days x 10 months in Y3.
A69: (iv) | B69: For JSP @ Rs.10,000 / month x 3 years ^ and Basti centres @ Rs. 350 / month x 2 centres in Y1 x 3 years ^ and in Y2: 3 more Basti centres will be started @ Rs. 500 / month ^
A70: (v) | B70: Balmelas @ Rs.1,000 x 10 melas x 3 years; Workshops @ Rs. 6,000 per workshop x 2 workshops per year x 3 years; Annual workshop @ Rs. 5,000 per year x 3 years; Children's outings for the basti centres @ Rs. 200 per outing x 6 outings per year x 9 bastis x 3 years. Proportionate increase per year according to the increase in number of children from: 250 (JSP + BC) children in Y1; to 350 (JSP+BC) children in Y2 and 480 (JSP+BC) children in Y3. It is being assumed that all children attend the Balmelas and workshops.
A71: (vi) | B71: Calculated @ Rs. 18,720 per event per year (average costs) x 3 events per year x 3 years
A72: (vii) | B72: Calculated @ Rs.1,060 per day for 22 days per month x 10 months for Y1 for charges of hired vehicle. For Y2 and Y3, calculation is made @ Rs. 157,541.5 per year assuming Muskaan would manage to buy its own vehicle fuel / running costs would be booked to the Trust grant (currently works out to average of Rs. 13,128.5 per month). If vehicle is purchased booking costs would be worked out and submitted to the funding agency for approval.
A73: (viii) | B73: Honorarium @ Rs. 3,000 (part-time) per month x 2 teachers x 10 months; For Y2 @ Rs. 3,300 (part-time) per month x 2 teachers x 10 months; For Y3 @ Rs. 4,500 (part-time) per month x 3 teachers x 10 months per year; and Activity costs Y1 @ Rs. 4,000; Y2 costs @ Rs. 6,000; Y3 costs @ Rs. 8,000.
A74: (ix) | B74: Calculated @ Rs. 40,200 in Y1; Rs. 50,250 in Y2 and Rs. 60,300 in Y3 towards 27 community meetings, 15 film shows and residential workshop with education committee each year.
A75: (x) | B75: Includes Television, DVD player, sheets and blankets, mattresses, durries, utensils and gas connection.
A76: (xi) | B76: Recurring Expenses per camp include honorariums for resource persons, additional teachers and cooks @ Rs. 65,200 per year per camp x 2 camps x 3 years^; Teaching, learning and activity material @ Rs. 27,550 per camp x 2 camps per year x 3 years^; Food material and cooking @ Rs. 1,47,000 per camp x 2 camps per year x 3 years ^; Travel @ Rs.12,000 per camp x 2 camps per year x 3 years ^; Venue cost and Miscellaneous cost @ Rs. 43,550 per camp x 2 camps per year x 3 years ^
A77: (xii) | B77: Calculated @ Rs. 29,413 per Balwadi per year x 8 Balwadi (Y1); 10 Balwadi in Y2; and 12 Balwadi in Y3. This works out to around Rs. 2,451 per month towards rent, library books, stationery, outings and supplementary nutritious snack towards recurrent costs.
A78: (xiii) | B78: Calculated as Study materials @ Rs. 800 per school x 25 schools x 3 years ^; Outings @ Rs. 800 per school x 25 schools x 3 years^; Baal melas @ Rs. 1,000 per mela x 90 melas per year x 3 years ^; Newsletters and library materials @ Rs. 25,500 per year x 3 years ^; Exposure visit @ Rs. 3,000 per teacher x 12 teachers x 3 years^; Additional activities in the model schools @ Rs. 9,000 per year x 3 years^; Teachers Training @ Rs. 7,000 per year x 3 years^; External Resource Person for support in the program @ Rs. 1,500 per day x 3 days per month x 11 months x 3 years ^; Community Meetings @ Rs. 10,000 per year x 3 years^.
A79: (xiv) | B79: Calculated as Baal Melas @ Rs. 45,000 per year x 3 years &; Science Fair @ Rs. 37,500 per year x 3 years &; Seminars @ Rs. 60,000 per year x 3 years&
A80: (xv) | B80: Calculated as School fees @ Rs. 200 per month x 12 months x 20 students x 3 years #; College fees @ Rs. 8,000 per year x 3 students x 3 years #; Hostel fees for girls enrolled outside @ Rs. 2,000 per year x 10 girls x 3 years #; Books, Uniform and Stationery @ Rs. 6,750 per year x 3 years #
A81: (xvi) | B81: Includes curricular material, Baal mela and other books, children's newsletter along with Resource person fees (for design work and educational material development)#
A82: (xvii) | B82: Calculated as cost for General Body Meetings@ Rs. 3,500 per meeting x 4 meetings per annum; Resource Person's fees @ Rs.10,000 per annum and Other costs@ Rs. 20,000 per annum.
A83: (xviii) | B83: Includes Exposure visits of JSP, Govt. school teams @ Rs. 2,600 per person x 27 persons x 3 years *; Teachers' Training - 2 day retreat @ Rs.1,500 per teacher x 25 teachers x 3 years*; Resource person and miscellaneous expenses for training @ Rs. 15,200 per year x 3 years* ; Training of Balwadi Teachers @ Rs. 1,500 per day x 6 days x 3 years*; Exposure visits of Balwadi Teachers @ Rs. 2,500 per teacher x 9 teachers x 3 years *
A84: (xix) | B84: Rs. 5,255/- deducted from Trust's Contribution for rounding up.

Sheet Residential Camp Expenditure Details
A1: One Time Expenses in the Residential Camp
A3: Television and DVD Player One set | E3: 12000
A4: Sheets and Blankets 35 sets @ Rs. 300 | E4: 10500
A5: Mattresses 30 pieces @ Rs. 350 | E5: 10500
A6: Mats (big durries) 4 @ Rs. 500 each | E6: 2000
A7: Blackboards 3 @ Rs. 800 each | E7: 2400
A8: Utensils Bulk | E8: 16000
A9: Gas connection One | E9: 2500
A10: Total | E10: =SUM(E3:E9) -> 55900
A14: Recurring Expenses (per year)
A15: Salaries for camp staff 3 people @ Rs. 7500 p.m. Per year with 10% P.F. | F15: 297000
A19: Details of Recurring Camp Expenditure (per 4 month camp)
A21: Cooks 2 people @ Rs. 4000 p.m. for 4 months per camp | F21: 32000
A22: Resource Persons for special discussions 10 working days @ Rs. 1000 per day per camp | F22: 10000
A23: Additional Incentive for stressful and overtime work for support team Rs 70 per day for 90 days for 2 persons per camp | F23: 12600
A24: Study Materials Library Books Bulk and will be needed even in camp after camp | F24: 4000
A25: Stationery (notebooks, photocopies, pencils, crayons etc.) Rs. 330 per child for 35 children | F25: 11550
A26: Teaching Learning Materials bulk | F26: 5000
A27: Activity Materials Bulk | F27: 8000
A28: Food Vegetables, rations, gas Rs. 35 per day per child for 120 days for 35 children | F28: 147000
A29: Other Recurring Costs Soap, oil, sanitary napkins, medical expenses, matke, dustbins etc | F29: 12000
A30: Travel To and fro the venue for children and everybody going and coming | F30: 6000
A31: Local Travel @ Rs. 1500 p.m. For 4 months | F31: 6000
A32: Venue Related Costs Rent @ Rs. 8000 p.m. For 4 months | F32: 32000
A34: Total | F34: =SUM(F21:F32) -> 286150
A37: Total Expenses | F37: =E10+2*F34+F15 -> 925200
A38: Administrative expenses | F38: =(0.07*F37) -> 64764
A39: TOTAL cost of the program | F39: =SUM(F37:F38) -> 989964
A44: *All expenses in INR | E44: INR | F44: USD
A45: Tata is paying about Rs 578633 per year; need around | E45: =(F39-578633) -> 411331 | F45: =411331/46 -> 8941.978261
